[Event "European Women Rapid-ch 2023"]
[Site "Monaco"]
[Date "2024.01.14"]
[Round "6.16"]
[White "Daulyte-Cornette, Deimante"]
[Black "Lezhepekova, Veronika"]
[Result "1-0"]
[ECO "B38"]
[WhiteElo "2372"]
[BlackElo "1935"]
[Annotator "RC"]
[PlyCount "83"]
[EventDate "2023.12.19"]
[EventType "swiss"]
[EventCountry "MNC"]
[SourceTitle "playchess.com"]
[Source "ChessBase"]
[SourceQuality "1"]
[TimeControl "900+10"]

1. e4 {[%emt 0:00:02]} c5 {[%emt 0:00:01]} 2. Nf3 {[%emt 0:00:04]} a6 {[%emt 0:00:02]} 3. c4 {[%emt 0:00:03]} Nc6 {[%emt 0:00:10]} 4. d4 {[%emt 0:00:03]} cxd4 {[%emt 0:00:13]} 5. Nxd4 {[%emt 0:00:02]} d6 {[%emt 0:00:07]} 6. Nc3 {[%emt 0:00:14]} g6 {[%emt 0:00:13]} 7. Be2 {[%emt 0:00:39]} Bg7 {[%emt 0:00:03]} 8. Be3 {[%emt 0:00:05]} Nf6 {[%emt 0:00:09]} 9. h3 {[%emt 0:00:22]} Bd7 {[%emt 0:00:33]} 10. O-O {[%emt 0:00:16]} O-O {[%emt 0:00:13]} 11. a3 {[%emt 0:02:44]} Rc8 {[%emt 0:00:20]} 12. Rc1 {[%emt 0:01:11]} Nxd4 {[%emt 0:02:01]} 13. Bxd4 {[%emt 0:00:03]} Bc6 {[%emt 0:00:20]} 14. Qc2 {[%emt 0:00:48]} Qd7 {[%emt 0:01:00]} 15. Rcd1 {[%emt 0:02:16]} b5 {[%emt 0:00:49]} 16. c5 {[%emt 0:01:00]} Qb7 {[%emt 0:00:26]} 17. f3 {[%emt 0:04:00]} dxc5 {[%emt 0:00:39]} 18. Bxc5 {[%emt 0:00:02]} Nh5 {[%emt 0:00:13]} 19. b4 {[%emt 0:00:44]} Qc7 {[%emt 0:01:15]} 20. Nd5 {[%emt 0:02:23]} Bxd5 {[%emt 0:01:03]} 21. Rxd5 {[%emt 0:00:17]} Qg3 {[%emt 0:00:43]} 22. Rxh5 {[%emt 0:00:34]} gxh5 {[%emt 0:00:05]} 23. f4 {[%emt 0:00:03]} Bd4+ {[%emt 0:00:53]} 24. Kh1 {[%emt 0:00:03]} Bxc5 {[%emt 0:01:31]} 25. bxc5 {[%emt 0:00:01]} Qxa3 {[%emt 0:00:15]} 26. Rc1 {[%emt 0:00:31]} Rc6 {[%emt 0:00:20]} 27. e5 {[%emt 0:00:12]} Rfc8 {[%emt 0:00:12]} 28. Rd1 {[%emt 0:00:04]} Rxc5 {[%emt 0:00:39]} 29. Qf5 {[%emt 0:00:02]} e6 {[%emt 0:01:01]} 30. Qg5+ {[%emt 0:00:10]} Kf8 {[%emt 0:00:09]} 31. Rd7 {[%emt 0:00:45]} Rc1+ {[%emt 0:00:41]} 32. Kh2 {[%emt 0:00:01]} Ke8 {[%emt 0:00:05]} 33. Rd3 {[%emt 0:00:21]} Qf8 {[%emt 0:00:55]} 34. Bxh5 {[%emt 0:00:10]} R1c3 {[%emt 0:00:37]} 35. Rd6 {[%emt 0:00:07]} R3c6 {[%emt 0:00:13]} 36. Rd3 {[%emt 0:00:24]} a5 {[%emt 0:00:06]} 37. f5 {[%emt 0:00:12]} exf5 {[%emt 0:00:19]} 38. Qxf5 {[%emt 0:00:01]} Qe7 {[%emt 0:00:01]} 39. Rg3 {[%emt 0:00:11]} Re6 {[%emt 0:01:40]} 40. Rg8+ {[%emt 0:00:09]} Kd7 {[%emt 0:00:08]} 41. Qd3+ {[%emt 0:00:04]} Rd6 {[%emt 0:00:17]} 42. Bg4+ {[%emt 0:00:05]} 1-0

[Event "European Women Rapid-ch 2023"]
[Site "Monaco"]
[Date "2024.01.14"]
[Round "6.17"]
[White "Reizniece-Ozola, Dana"]
[Black "Savina, Anastasia"]
[Result "0-1"]
[ECO "A26"]
[WhiteElo "2278"]
[BlackElo "2340"]
[Annotator "RC"]
[PlyCount "172"]
[EventDate "2023.12.19"]
[EventType "swiss"]
[EventCountry "MNC"]
[SourceTitle "playchess.com"]
[Source "ChessBase"]
[SourceQuality "1"]
[TimeControl "900+10"]

1. c4 {[%emt 0:00:01]} g6 {[%emt 0:00:16]} 2. Nc3 {[%emt 0:00:09]} Bg7 {[%emt 0:00:02]} 3. Nf3 {[%emt 0:00:03]} d6 {[%emt 0:00:29]} 4. g3 {[%emt 0:00:07]} Nc6 {[%emt 0:01:11]} 5. Bg2 {[%emt 0:00:17]} e5 {[%emt 0:00:09]} 6. O-O {[%emt 0:00:38]} Be6 {[%emt 0:02:43]} 7. d3 {[%emt 0:00:10]} h6 {[%emt 0:00:05]} 8. Rb1 {[%emt 0:00:11]} Qd7 {[%emt 0:00:25]} 9. Nd5 {[%emt 0:00:03]} Nd8 {[%emt 0:00:15]} 10. e4 {[%emt 0:01:44]} c6 {[%emt 0:00:19]} 11. Ne3 {[%emt 0:00:03]} Ne7 {[%emt 0:03:03]} 12. d4 {[%emt 0:01:11]} exd4 {[%emt 0:00:22]} 13. Nxd4 {[%emt 0:00:02]} Bh3 {[%emt 0:00:10]} 14. Ndf5 {[%emt 0:01:01]} Bxf5 {[%emt 0:00:54]} 15. exf5 {[%emt 0:00:02]} gxf5 {[%emt 0:01:08]} 16. Bh3 {[%emt 0:00:34]} h5 {[%emt 0:00:22]} 17. Nxf5 {[%emt 0:00:43]} Nxf5 {[%emt 0:00:17]} 18. Qc2 {[%emt 0:01:41]} Ne6 {[%emt 0:00:44]} 19. Bxf5 {[%emt 0:00:12]} O-O-O {[%emt 0:01:39]} 20. Be3 {[%emt 0:00:45]} Kb8 {[%emt 0:00:17]} 21. Qa4 {[%emt 0:02:39]} c5 {[%emt 0:00:17]} 22. Qxd7 {[%emt 0:02:07]} Rxd7 {[%emt 0:00:03]} 23. b4 {[%emt 0:00:15]} Bh6 {[%emt 0:02:07]} 24. bxc5 {[%emt 0:02:10]} Bxe3 {[%emt 0:00:11]} 25. fxe3 {[%emt 0:00:52]} dxc5 {[%emt 0:00:03]} 26. Be4 {[%emt 0:00:10]} h4 {[%emt 0:00:15]} 27. Bd5 {[%emt 0:00:12]} hxg3 {[%emt 0:00:05]} 28. hxg3 {[%emt 0:00:01]} Nd8 {[%emt 0:01:21]} 29. Kg2 {[%emt 0:00:07]} Re7 {[%emt 0:00:05]} 30. Rf3 {[%emt 0:00:22]} Kc7 {[%emt 0:00:19]} 31. Rbf1 {[%emt 0:00:07]} Rh7 {[%emt 0:00:01]} 32. g4 {[%emt 0:00:43]} Ne6 {[%emt 0:00:06]} 33. Rf5 {[%emt 0:00:31]} b6 {[%emt 0:00:03]} 34. Kg3 {[%emt 0:00:23]} Rg7 {[%emt 0:00:02]} 35. Bxe6 {[%emt 0:00:12]} fxe6 {[%emt 0:00:06]} 36. Rh5 {[%emt 0:00:11]} Rd7 {[%emt 0:00:14]} 37. Re5 {[%emt 0:00:13]} Kd6 {[%emt 0:00:04]} 38. Re4 {[%emt 0:00:03]} Ke7 {[%emt 0:00:04]} 39. Rh1 {[%emt 0:00:02]} Rd2 {[%emt 0:00:41]} 40. a4 {[%emt 0:00:13]} Ra2 {[%emt 0:00:27]} 41. Rh6 {[%emt 0:00:04]} Rxa4 {[%emt 0:00:01]} 42. Rhxe6+ {[%emt 0:00:06]} Kd7 {[%emt 0:00:10]} 43. R6e5 {[%emt 0:00:42]} a5 {[%emt 0:00:06]} 44. g5 {[%emt 0:00:03]} Ra1 {[%emt 0:00:03]} 45. Kg4 {[%emt 0:00:18]} Rg1+ {[%emt 0:00:02]} 46. Kh5 {[%emt 0:00:03]} Rh1+ {[%emt 0:00:04]} 47. Kg4 {[%emt 0:00:01]} Rg1+ {[%emt 0:00:02]} 48. Kh5 {[%emt 0:00:04]} Rh1+ {[%emt 0:00:03]} 49. Kg4 {[%emt 0:00:07]} a4 {[%emt 0:00:05]} 50. Rd5+ {[%emt 0:00:08]} Kc7 {[%emt 0:00:03]} 51. Re8 {[%emt 0:00:08]} Rg1+ {[%emt 0:00:14]} 52. Kh5 {[%emt 0:00:04]} Rh1+ {[%emt 0:00:24]} 53. Kg4 {[%emt 0:00:01]} Kb7 {[%emt 0:00:10]} 54. Rdd8 {[%emt 0:00:07]} Rg1+ {[%emt 0:00:03]} 55. Kf4 {[%emt 0:00:03]} Rf7+ {[%emt 0:00:33]} 56. Ke5 {[%emt 0:00:29]} Rxg5+ {[%emt 0:00:02]} 57. Ke6 {[%emt 0:00:01]} Rgg7 {[%emt 0:00:08]} 58. Ra8 {[%emt 0:00:37]} Re7+ {[%emt 0:00:21]} 59. Kf6 {[%emt 0:00:14]} Rgf7+ {[%emt 0:00:16]} 60. Kg6 {[%emt 0:00:01]} Rxe8 {[%emt 0:00:09]} 61. Rxe8 {[%emt 0:00:02]} Rf1 {[%emt 0:00:42]} 62. Rd8 {[%emt 0:00:34]} a3 {[%emt 0:00:11]} 63. Rd2 {[%emt 0:00:13]} Rb1 {[%emt 0:00:02]} 64. Ra2 {[%emt 0:00:03]} Rb3 {[%emt 0:00:02]} 65. e4 {[%emt 0:00:02]} Kc7 {[%emt 0:00:02]} 66. Kf6 {[%emt 0:00:18]} Kc6 {[%emt 0:00:28]} 67. Ke6 {[%emt 0:00:10]} b5 {[%emt 0:00:03]} 68. cxb5+ {[%emt 0:00:06]} Kxb5 {[%emt 0:00:01]} 69. e5 {[%emt 0:00:10]} Kb4 {[%emt 0:00:03]} 70. Kd5 {[%emt 0:00:13]} Rb2 {[%emt 0:00:06]} 71. Ra1 {[%emt 0:00:01]} Rd2+ {[%emt 0:00:02]} 72. Kc6 {[%emt 0:00:08]} a2 {[%emt 0:00:13]} 73. Re1 {[%emt 0:00:06]} Re2 {[%emt 0:00:31]} 74. Rxe2 {[%emt 0:00:08]} a1=Q {[%emt 0:00:03]} 75. Re4+ {[%emt 0:00:19]} c4 {[%emt 0:00:02]} 76. Kd5 {[%emt 0:00:10]} Qa8+ {[%emt 0:00:11]} 77. Kd4 {[%emt 0:00:02]} Qa7+ {[%emt 0:00:03]} 78. Kd5 {[%emt 0:00:03]} Qb7+ {[%emt 0:00:19]} 79. Kd4 {[%emt 0:00:01]} Qb6+ {[%emt 0:00:03]} 80. Kd5 {[%emt 0:00:05]} Qc5+ {[%emt 0:00:35]} 81. Ke6 {[%emt 0:00:01]} Kb3 {[%emt 0:00:05]} 82. Kf6 {[%emt 0:00:44]} Qf8+ {[%emt 0:00:18]} 83. Kg6 {[%emt 0:00:08]} Qe8+ {[%emt 0:00:13]} 84. Kf6 {[%emt 0:00:02]} Qf8+ {[%emt 0:00:05]} 85. Kg6 {[%emt 0:00:01]} Qf3 {[%emt 0:00:16]} 86. Rd4 {[%emt 0:00:21]} Qe3 {[%emt 0:00:03]} 0-1

[Event "European Women Rapid-ch 2023"]
[Site "Monaco"]
[Date "2024.01.14"]
[Round "6.18"]
[White "Exler, Veronika"]
[Black "Bensdorp-De Labaca, Marlies"]
[Result "1/2-1/2"]
[ECO "C01"]
[WhiteElo "2157"]
[BlackElo "2237"]
[Annotator "TA"]
[PlyCount "101"]
[EventDate "2023.12.19"]
[EventType "swiss"]
[EventCountry "MNC"]
[SourceTitle "playchess.com"]
[Source "ChessBase"]
[SourceQuality "1"]
[TimeControl "900+10"]

{[%evp 14,101,35,33,31,21,33,25,38,0,0,1,11,0,26,14,25,18,32,0,6,0,0,0,6,-1,10,16,50,45,43,31,22,44,45,0,0,-6,-6,-12,-6,-6,-9,-6,0,0,0,0,0,0,0,0,0,-9,-8,-8,-8,-8,-8,-8,-8,-8,-8,-8,0,-8,-8,-8,0,0,0,0,0,0,0,0,0,0,0,0,0,0,0,0,0,0,0,0,0,0]} 1. e4 {[%emt 0:00:01]} e6 {[%emt 0:00:04]} 2. d4 {[%emt 0:00:01]} d5 {[%emt 0:00:02]} 3. Bd3 {[%emt 0:00:01]} c5 {[%emt 0:00:02]} 4. exd5 {[%emt 0:00:02]} exd5 {[%emt 0:00:02]} 5. Nf3 {[%emt 0:00:01]} Nf6 {[%emt 0:00:13]} 6. O-O {[%emt 0:00:02]} c4 {[%emt 0:00:23]} 7. Re1+ {[%emt 0:00:03]} Be7 {[%emt 0:00:01]} 8. Bf1 {[%emt 0:00:01]} O-O {[%emt 0:00:02]} 9. b3 {[%emt 0:00:07] OK} cxb3 {[%emt 0:00:06] OK} 10. axb3 {[%emt 0:00:03]} Nc6 {[%emt 0:00:02] White has an edge.} 11. c4 {[%emt 0:00:59] Inaccurate} Bg4 {[%emt 0:00:02][%cal Bc8g4,Bg4h5,Bh5g6][%mdl 32] EV=14.33. Goes to g6 (dbg)). OK} 12. Bb2 {[%emt 0:01:32]} Bb4 {[%emt 0:00:26]} 13. Re3 {[%emt 0:01:00] OK} a6 {[%emt 0:01:48] Inaccurate} 14. Na3 {[%emt 0:02:43] OK} Rc8 {[%emt 0:00:50]} 15. Nc2 {[%emt 0:00:28] OK} Bd6 {[%emt 0:00:02] OK} 16. h3 {[%emt 0:00:27] Inaccurate} Bh5 {[%emt 0:00:10] OK} 17. Ba3 {[%emt 0:01:26]} Bxa3 {[%emt 0:00:28] Best} 18. Rxa3 {[%emt 0:00:07]} Qc7 {[%emt 0:02:21]} 19. Qe1 {[%emt 0:01:23]} Rfe8 {[%emt 0:00:18]} 20. Ne5 {[%emt 0:00:28] OK} Bg6 {[%emt 0:02:03] Inaccurate} 21. Nxc6 {[%emt 0:04:22] OK} Qxc6 {[%emt 0:00:12]} 22. Nb4 {[%emt 0:00:25]} Qd7 {[%emt 0:01:10]} 23. c5 {[%emt 0:02:20] OK} Rxe3 {[%emt 0:00:05]} 24. fxe3 {[%emt 0:00:44] Inaccurate} Qe6 {[%emt 0:01:23] The position is equal.} 25. Bd3 {[%emt 0:00:06]} Re8 {[%emt 0:00:16] OK} 26. Bxg6 {[%emt 0:00:10] Best} hxg6 {[%emt 0:00:02]} 27. c6 {[%emt 0:00:19] OK} bxc6 {[%emt 0:00:07] OK} 28. Rxa6 {[%emt 0:00:01] Best (Easy)} Qxe3+ {[%emt 0:00:06]} 29. Qxe3 {[%emt 0:00:02]} Rxe3 {[%emt 0:00:01]} 30. Nxc6 {[%emt 0:00:23] OK} Rxb3 $11 {[%emt 0:00:13][%mdl 4096] Endgame. KRN-KRN. OK} 31. Ra8+ {[%emt 0:00:03] OK} Kh7 {[%emt 0:00:03] Best (Easy)} 32. Nd8 {[%emt 0:00:24] OK} g5 {[%emt 0:02:33] OK} 33. Nxf7 {[%emt 0:00:02]} g4 {[%emt 0:01:24] OK} 34. Rh8+ {[%emt 0:00:07] OK} Kg6 {[%emt 0:00:01]} 35. Ne5+ {[%emt 0:00:03] OK} Kg5 {[%emt 0:00:50] OK} 36. hxg4 {[%emt 0:00:15] OK} Nxg4 {[%emt 0:00:13]} 37. Nxg4 {[%emt 0:00:27]} Kxg4 {[%emt 0:00:02] KR-KR} 38. Rd8 {[%emt 0:00:08] OK} Kg3 {[%emt 0:00:42][%cal Rb3b1] [#]} 39. Kf1 $1 {[%emt 0:00:01] Strong} Rb5 {[%emt 0:00:25] OK} 40. Rg8 {[%emt 0:00:17] OK} Rb1+ {[%emt 0:00:09]} 41. Ke2 {[%emt 0:00:03]} Rb7 {[%emt 0:00:10][%cal Og3f4]} (41... Kxg2 42. Rxg7+ Kh3 43. Rg5) 42. Rd8 {[%emt 0:00:18] OK} Rb5 {[%emt 0:00:51] OK} 43. Rg8 {[%emt 0:00:02] OK} Rb2+ {[%emt 0:00:25] OK} ({Reject} 43... Kxg2 $6 44. Rxg7+ Kh3 45. Kf3 Rb3+ 46. Kf4 $16) 44. Kd3 {[%emt 0:00:15] OK} Rb3+ {[%emt 0:00:30]} 45. Kd2 {[%emt 0:00:14] OK} Kxg2 {[%emt 0:00:16]} 46. Rxg7+ {[%emt 0:00:01] OK} Kf3 {[%emt 0:00:04] Best} 47. Rh7 {[%emt 0:00:16] [#] Threatening mate with Rh3+.} Kf4 {[%emt 0:00:36]} 48. Rh5 {[%emt 0:00:14]} Ke4 {[%emt 0:00:14] OK} 49. Rh4+ {[%emt 0:00:02] OK} Kf5 {[%emt 0:00:01] Best (Easy)} 50. Rh5+ {[%emt 0:00:13] OK} Ke4 {[%emt 0:00:03] OK} 51. Rh4+ {[%emt 0:00:01] Weighted Error Value: White=0.03 (flawless) /Black=0.04 (flawless) . OK.  Inaccurate:     	White=3     	Black=2      OK:         	White=24    	Black=15     Best:        	White=2     	Black=4      Strong:       	White=1     	---} 1/2-1/2

[Event "European Women Rapid-ch 2023"]
[Site "Monaco"]
[Date "2024.01.14"]
[Round "6.19"]
[White "Collado Barbas, Laura"]
[Black "Schulze, Lara"]
[Result "0-1"]
[ECO "E32"]
[WhiteElo "2037"]
[BlackElo "2285"]
[Annotator "RC"]
[PlyCount "56"]
[EventDate "2023.12.19"]
[EventType "swiss"]
[EventCountry "MNC"]
[SourceTitle "playchess.com"]
[Source "ChessBase"]
[SourceQuality "1"]
[TimeControl "900+10"]

1. d4 {[%emt 0:00:02]} Nf6 {[%emt 0:00:01]} 2. c4 {[%emt 0:00:02]} e6 {[%emt 0:00:02]} 3. Nc3 {[%emt 0:00:02]} Bb4 {[%emt 0:00:01]} 4. Qc2 {[%emt 0:00:02]} O-O {[%emt 0:00:13]} 5. e4 {[%emt 0:00:04]} d5 {[%emt 0:00:23]} 6. e5 {[%emt 0:00:03]} Ne4 {[%emt 0:00:13]} 7. Bd3 {[%emt 0:00:14]} c5 {[%emt 0:00:38]} 8. Nf3 {[%emt 0:00:22]} cxd4 {[%emt 0:02:07]} 9. Nxd4 {[%emt 0:00:06]} Nd7 {[%emt 0:02:00]} 10. Bf4 {[%emt 0:08:56]} Ndc5 {[%emt 0:00:43]} 11. O-O {[%emt 0:04:00]} Nxd3 {[%emt 0:02:48]} 12. Qxd3 {[%emt 0:00:06]} Nxc3 {[%emt 0:01:50]} 13. bxc3 {[%emt 0:00:03]} Be7 {[%emt 0:00:36]} 14. Rfd1 {[%emt 0:01:00]} Bd7 {[%emt 0:01:13]} 15. Rab1 {[%emt 0:01:53]} b6 {[%emt 0:00:28]} 16. cxd5 {[%emt 0:00:15]} exd5 {[%emt 0:00:04]} 17. Qf3 {[%emt 0:00:01]} Be6 {[%emt 0:01:07]} 18. c4 {[%emt 0:00:04]} Rc8 {[%emt 0:01:29]} 19. cxd5 {[%emt 0:00:10]} Bxd5 {[%emt 0:00:31]} 20. Qg3 {[%emt 0:00:12]} Be4 {[%emt 0:00:53]} 21. Ne6 {[%emt 0:00:40]} fxe6 {[%emt 0:00:36]} 22. Rxd8 {[%emt 0:00:02]} Rfxd8 {[%emt 0:00:14]} 23. Re1 {[%emt 0:00:04]} Bf5 {[%emt 0:00:02]} 24. Bh6 {[%emt 0:00:29]} Bf8 {[%emt 0:00:04]} 25. Bg5 {[%emt 0:00:02]} Rd4 {[%emt 0:00:16]} 26. Qe3 {[%emt 0:00:22]} Re4 {[%emt 0:00:22]} 27. h3 {[%emt 0:00:13]} Rxe3 {[%emt 0:00:01]} 28. Rxe3 {[%emt 0:00:01]} Rc2 {[%emt 0:00:04]} 0-1

[Event "European Women Rapid-ch 2023"]
[Site "Monaco"]
[Date "2024.01.14"]
[Round "6.20"]
[White "De Seroux, Camille"]
[Black "Movsesian, Julia"]
[Result "1-0"]
[ECO "A00"]
[WhiteElo "2075"]
[BlackElo "2257"]
[Annotator "RC"]
[PlyCount "91"]
[EventDate "2023.12.19"]
[EventType "swiss"]
[EventCountry "MNC"]
[SourceTitle "playchess.com"]
[Source "ChessBase"]
[SourceQuality "1"]
[TimeControl "900+10"]

1. Nc3 {[%emt 0:00:02]} d5 {[%emt 0:00:04]} 2. e4 {[%emt 0:00:02]} d4 {[%emt 0:00:19]} 3. Nce2 {[%emt 0:00:03]} c5 {[%emt 0:00:05]} 4. Nf3 {[%emt 0:00:27]} Nc6 {[%emt 0:00:06]} 5. Ng3 {[%emt 0:00:12]} a6 {[%emt 0:00:39]} 6. a4 {[%emt 0:01:05]} Nf6 {[%emt 0:00:49]} 7. Bc4 {[%emt 0:00:10]} Rb8 {[%emt 0:00:27]} 8. d3 {[%emt 0:01:31]} Bg4 {[%emt 0:01:48]} 9. Bf4 {[%emt 0:02:08]} e5 {[%emt 0:00:13]} 10. Bd2 {[%emt 0:00:18]} Bd6 {[%emt 0:00:33]} 11. h3 {[%emt 0:00:16]} Bd7 {[%emt 0:00:08]} 12. O-O {[%emt 0:00:38]} O-O {[%emt 0:00:02]} 13. Nh4 {[%emt 0:02:35]} Ne7 {[%emt 0:00:53]} 14. f4 {[%emt 0:00:43]} exf4 {[%emt 0:04:05]} 15. Bxf4 {[%emt 0:00:10]} Bxf4 {[%emt 0:00:09]} 16. Rxf4 {[%emt 0:00:04]} Bxa4 {[%emt 0:00:13]} 17. Rxa4 {[%emt 0:03:26]} b5 {[%emt 0:00:01]} 18. Rxa6 {[%emt 0:00:23]} bxc4 {[%emt 0:00:02]} 19. Raxf6 {[%emt 0:00:14]} gxf6 {[%emt 0:00:03]} 20. Nh5 {[%emt 0:00:14]} Kh8 {[%emt 0:01:42]} 21. Nxf6 {[%emt 0:00:17]} Ng8 {[%emt 0:00:04]} 22. Nxh7 {[%emt 0:02:09]} Kxh7 {[%emt 0:00:08]} 23. Qh5+ {[%emt 0:00:02]} Nh6 {[%emt 0:00:11]} 24. Nf5 {[%emt 0:00:12]} Rb6 {[%emt 0:00:17]} 25. Rh4 {[%emt 0:00:41]} cxd3 {[%emt 0:00:48]} 26. cxd3 {[%emt 0:00:23]} Rg6 {[%emt 0:04:44]} 27. Nxh6 {[%emt 0:00:11]} Qg5 {[%emt 0:00:23]} 28. Nf5+ {[%emt 0:00:27]} Qxh5 {[%emt 0:00:05]} 29. Rxh5+ {[%emt 0:00:01]} Kg8 {[%emt 0:00:01]} 30. Ne7+ {[%emt 0:00:05]} Kg7 {[%emt 0:00:01]} 31. Nxg6 {[%emt 0:00:02]} Kxg6 {[%emt 0:00:06]} 32. Rxc5 {[%emt 0:00:03]} Rb8 {[%emt 0:00:00]} 33. Rc2 {[%emt 0:00:13]} Kg5 {[%emt 0:00:01]} 34. Rf2 {[%emt 0:00:10]} Rb3 {[%emt 0:00:02]} 35. Rd2 {[%emt 0:00:26]} Rb6 {[%emt 0:00:01]} 36. g3 {[%emt 0:00:08]} Rc6 {[%emt 0:00:13]} 37. Kg2 {[%emt 0:00:03]} Rb6 {[%emt 0:00:01]} 38. Kf3 {[%emt 0:00:21]} Rf6+ {[%emt 0:00:01]} 39. Kg2 {[%emt 0:00:07]} Rb6 {[%emt 0:00:02]} 40. h4+ {[%emt 0:00:13]} Kg4 {[%emt 0:00:10]} 41. Rf2 {[%emt 0:00:01]} Rb3 {[%emt 0:00:01]} 42. Rf4+ {[%emt 0:00:14]} Kh5 {[%emt 0:00:01]} 43. Rxf7 {[%emt 0:00:14]} Rxd3 {[%emt 0:00:02]} 44. Kh3 {[%emt 0:00:24]} Re3 {[%emt 0:00:05]} 45. Re7 {[%emt 0:00:14]} d3 {[%emt 0:00:09]} 46. Rd7 {[%emt 0:00:02]} 1-0

[Event "European Women Rapid-ch 2023"]
[Site "Monaco"]
[Date "2024.01.14"]
[Round "6.21"]
[White "Lazarne Vajda, Szidonia"]
[Black "Uta, Adeline-Ramona"]
[Result "1-0"]
[ECO "B22"]
[WhiteElo "2283"]
[BlackElo "2036"]
[Annotator "RC"]
[PlyCount "47"]
[EventDate "2023.12.19"]
[EventType "swiss"]
[EventCountry "MNC"]
[SourceTitle "playchess.com"]
[Source "ChessBase"]
[SourceQuality "1"]
[TimeControl "900+10"]

1. e4 {[%emt 0:00:03]} c5 {[%emt 0:00:14]} 2. c3 {[%emt 0:00:05]} Nf6 {[%emt 0:00:19]} 3. e5 {[%emt 0:00:03]} Nd5 {[%emt 0:00:02]} 4. d4 {[%emt 0:00:01]} cxd4 {[%emt 0:00:04]} 5. cxd4 {[%emt 0:00:01]} e6 {[%emt 0:00:14]} 6. Nf3 {[%emt 0:00:03]} Be7 {[%emt 0:00:09]} 7. Nc3 {[%emt 0:00:13]} Nxc3 {[%emt 0:00:46]} 8. bxc3 {[%emt 0:00:01]} O-O {[%emt 0:00:05]} 9. Bd3 {[%emt 0:00:05]} d6 {[%emt 0:00:24]} 10. Qc2 {[%emt 0:00:25]} h6 {[%emt 0:00:35]} 11. Qe2 {[%emt 0:00:33]} dxe5 {[%emt 0:01:54]} 12. Nxe5 {[%emt 0:00:12]} Nd7 {[%emt 0:04:24]} 13. Nxd7 {[%emt 0:00:03]} Qxd7 {[%emt 0:00:15]} 14. Qe4 {[%emt 0:00:02]} f5 {[%emt 0:00:09]} 15. Qf3 {[%emt 0:00:06]} Qc7 {[%emt 0:04:38]} 16. Bd2 {[%emt 0:00:20]} Bd6 {[%emt 0:00:07]} 17. h3 {[%emt 0:01:04]} Bd7 {[%emt 0:00:07]} 18. Qe2 {[%emt 0:00:37]} e5 {[%emt 0:00:18]} 19. dxe5 {[%emt 0:02:03]} Bxe5 {[%emt 0:00:05]} 20. O-O {[%emt 0:00:03]} Rae8 {[%emt 0:00:08]} 21. Qd1 {[%emt 0:00:39]} f4 {[%emt 0:00:24]} 22. f3 {[%emt 0:00:38]} Bxc3 {[%emt 0:00:19]} 23. Qb3+ {[%emt 0:00:12]} Kh8 {[%emt 0:00:16]} 24. Qxc3 {[%emt 0:00:46]} 1-0